[Event "Late-Titled-Tuesday-Blitz-April-16-2024"]
[Site "Chess.com"]
[Date "2024.04.16"]
[Round "2"]
[White "Road2GM3000"]
[Black "TiagoMangialardo"]
[Result "1-0"]
[WhiteElo "2441"]
[BlackElo "2074"]
[TimeControl "180+1"]
[EndTime "14:17:12 PDT"]
[Termination "Road2GM3000 won by resignation"]

1. d4 {[%clk 0:03:00.1]} 1... Nf6 {[%clk 0:02:54.7]} 2. c4 {[%clk 0:03:00.3]}
2... c5 {[%clk 0:02:53.5]} 3. d5 {[%clk 0:03:00.5]} 3... g6 {[%clk 0:02:52.5]}
4. Nc3 {[%clk 0:03:00.8]} 4... d6 {[%clk 0:02:52.9]} 5. e3 {[%clk 0:03:01.7]}
5... Bg7 {[%clk 0:02:53.4]} 6. Nf3 {[%clk 0:03:01.3]} 6... O-O {[%clk
0:02:53.9]} 7. Bd3 {[%clk 0:03:02]} 7... e6 {[%clk 0:02:51.7]} 8. O-O {[%clk
0:03:02.1]} 8... exd5 {[%clk 0:02:51.8]} 9. cxd5 {[%clk 0:03:02]} 9... a6 {[%clk
0:02:51.1]} 10. a4 {[%clk 0:03:02.2]} 10... Bg4 {[%clk 0:02:49.3]} 11. h3 {[%clk
0:03:01.3]} 11... Bxf3 {[%clk 0:02:49.4]} 12. Qxf3 {[%clk 0:03:02.2]} 12... Nbd7
{[%clk 0:02:50]} 13. Qg3 {[%clk 0:02:59.5]} 13... Ne5 {[%clk 0:02:45.1]} 14. Bc2
{[%clk 0:02:33.3]} 14... Nh5 {[%clk 0:02:18.5]} 15. Qh2 {[%clk 0:02:28.4]} 15...
Nc4 {[%clk 0:02:10.8]} 16. e4 {[%clk 0:02:25.2]} 16... Be5 {[%clk 0:02:08.3]}
17. Qh1 {[%clk 0:02:23.6]} 17... Bd4 {[%clk 0:00:40.9]} 18. Ne2 {[%clk
0:02:13.2]} 18... Be5 {[%clk 0:00:32.6]} 19. f4 {[%clk 0:02:11.3]} 19... Bd4+
{[%clk 0:00:28.9]} 20. Nxd4 {[%clk 0:02:11.1]} 20... Ng3 {[%clk 0:00:29]} 21.
Qh2 {[%clk 0:02:07.5]} 21... Nxf1 {[%clk 0:00:29.1]} 22. Kxf1 {[%clk 0:02:07.5]}
22... cxd4 {[%clk 0:00:29.1]} 23. Qg3 {[%clk 0:02:04.9]} 23... b5 {[%clk
0:00:24.5]} 24. b3 {[%clk 0:02:00.4]} 24... Ne3+ {[%clk 0:00:19.8]} 25. Bxe3
{[%clk 0:02:01.1]} 25... dxe3 {[%clk 0:00:20.7]} 26. Qxe3 {[%clk 0:02:01.6]}
26... Rc8 {[%clk 0:00:18.8]} 27. Bd3 {[%clk 0:02:00.5]} 27... Qf6 {[%clk
0:00:19.1]} 28. Rd1 {[%clk 0:01:51.8]} 28... Rc3 {[%clk 0:00:19]} 29. axb5
{[%clk 0:01:51.5]} 29... axb5 {[%clk 0:00:17.2]} 30. b4 {[%clk 0:01:50.2]} 30...
Ra8 {[%clk 0:00:11.5]} 31. e5 {[%clk 0:01:43.3]} 31... dxe5 {[%clk 0:00:05.5]}
32. Qxe5 {[%clk 0:01:44.2]} 32... Qxe5 {[%clk 0:00:02.6]} 33. fxe5 {[%clk
0:01:45.1]} 33... Rd8 {[%clk 0:00:01.9]} 34. Bxb5 {[%clk 0:01:45.5]} 34... Rb3
{[%clk 0:00:01.7]} 35. e6 {[%clk 0:01:45.2]} 35... fxe6 {[%clk 0:00:01.5]} 36.
dxe6 {[%clk 0:01:46.1]} 36... Rd4 {[%clk 0:00:01]} 37. Ke2 {[%clk 0:01:47]}
37... Rxd1 {[%clk 0:00:01.9]} 38. Kxd1 {[%clk 0:01:47.1]} 38... Kf8 {[%clk
0:00:02.3]} 39. Bd7 {[%clk 0:01:40.6]} 39... Rxb4 {[%clk 0:00:03.2]} 40. Ke2
{[%clk 0:01:41.2]} 40... Ke7 {[%clk 0:00:03.6]} 41. Kf3 {[%clk 0:01:41.7]} 41...
Rb3+ {[%clk 0:00:03.5]} 42. Kf4 {[%clk 0:01:41.9]} 42... Rb5 {[%clk 0:00:03.9]}
43. Bxb5 {[%clk 0:01:41.3]} 43... Kxe6 {[%clk 0:00:04.2]} 44. Kg5 {[%clk
0:01:40.9]} 44... Kf7 {[%clk 0:00:04.1]} 45. Kh6 {[%clk 0:01:40]} 45... Kg8
{[%clk 0:00:05]} 46. Bc4+ {[%clk 0:01:39.1]} 46... Kh8 {[%clk 0:00:05.9]} 47. h4
{[%clk 0:01:37.9]} 47... g5 {[%clk 0:00:06.4]} 48. Kxg5 {[%clk 0:01:38]} 48...
Kg7 {[%clk 0:00:06.4]} 49. g4 {[%clk 0:01:37.3]} 49... Kh8 {[%clk 0:00:06.4]}
50. Bd3 {[%clk 0:01:36.5]} 50... Kg7 {[%clk 0:00:06.3]} 51. Bxh7 {[%clk
0:01:36.6]} 51... Kxh7 {[%clk 0:00:07.2]} 52. Kf5 {[%clk 0:01:37]} 52... Kg7
{[%clk 0:00:07.7]} 53. h5 {[%clk 0:01:37.7]} 53... Kf7 {[%clk 0:00:08.1]} 54. g5
{[%clk 0:01:38.3]} 54... Kg7 {[%clk 0:00:09]} 55. g6 {[%clk 0:01:38.6]} 55...
Kg8 {[%clk 0:00:07.9]} 56. h6 {[%clk 0:01:38.3]} 56... Kh8 {[%clk 0:00:07.4]}
57. Kf6 {[%clk 0:01:32.2]} 57... Kg8 {[%clk 0:00:08.3]} 58. g7 {[%clk
0:01:30.4]} 58... Kh7 {[%clk 0:00:07]} 59. Kf7 {[%clk 0:01:29.4]} 1-0

[Event "Late-Titled-Tuesday-Blitz-April-16-2024"]
[Site "Chess.com"]
[Date "2024.04.16"]
[Round "2"]
[White "Firouzja2003"]
[Black "manitodeplomo"]
[Result "1-0"]
[WhiteElo "3037"]
[BlackElo "2638"]
[TimeControl "180+1"]
[EndTime "14:17:15 PDT"]
[Termination "Firouzja2003 won on time"]

1. e4 {[%clk 0:03:00.9]} 1... Nf6 {[%clk 0:02:58.1]} 2. e5 {[%clk 0:03:01]} 2...
Nd5 {[%clk 0:02:58.4]} 3. d4 {[%clk 0:03:01.9]} 3... d6 {[%clk 0:02:59]} 4. Nf3
{[%clk 0:03:02]} 4... Bg4 {[%clk 0:02:56.6]} 5. h3 {[%clk 0:03:02.1]} 5... Bxf3
{[%clk 0:02:54.9]} 6. Qxf3 {[%clk 0:03:02.2]} 6... dxe5 {[%clk 0:02:50.9]} 7.
dxe5 {[%clk 0:03:03.1]} 7... Nc6 {[%clk 0:02:49]} 8. Qe4 {[%clk 0:03:02]} 8...
e6 {[%clk 0:02:46.4]} 9. Bc4 {[%clk 0:02:57.1]} 9... Nb6 {[%clk 0:02:44.1]} 10.
Bb5 {[%clk 0:02:50]} 10... Qd5 {[%clk 0:02:44.3]} 11. Nc3 {[%clk 0:02:44.7]}
11... Qxe4+ {[%clk 0:02:36.4]} 12. Nxe4 {[%clk 0:02:45.6]} 12... O-O-O {[%clk
0:02:36.5]} 13. Bxc6 {[%clk 0:02:45.5]} 13... bxc6 {[%clk 0:02:37.4]} 14. Ke2
{[%clk 0:02:43.9]} 14... Be7 {[%clk 0:02:35.3]} 15. Be3 {[%clk 0:02:33.8]} 15...
Nc4 {[%clk 0:02:24.9]} 16. Bxa7 {[%clk 0:02:29.3]} 16... Nxe5 {[%clk 0:02:22.7]}
17. a4 {[%clk 0:02:22.4]} 17... f5 {[%clk 0:02:01.8]} 18. Nc5 {[%clk 0:02:12.1]}
18... Bxc5 {[%clk 0:01:57.9]} 19. Bxc5 {[%clk 0:02:13]} 19... Rd5 {[%clk
0:01:57.6]} 20. b4 {[%clk 0:02:09.5]} 20... Rhd8 {[%clk 0:01:57.6]} 21. Rhd1
{[%clk 0:02:08.8]} 21... Nc4 {[%clk 0:01:49.5]} 22. a5 {[%clk 0:01:44.1]} 22...
Rxd1 {[%clk 0:01:22.6]} 23. Rxd1 {[%clk 0:01:43.9]} 23... Rxd1 {[%clk
0:01:22.6]} 24. Kxd1 {[%clk 0:01:44.1]} 24... Kb7 {[%clk 0:01:23.4]} 25. Ke2
{[%clk 0:01:42.2]} 25... Ka6 {[%clk 0:01:23.6]} 26. Kd3 {[%clk 0:01:42]} 26...
Kb5 {[%clk 0:01:23.4]} 27. a6 {[%clk 0:01:23.4]} 27... Nb2+ {[%clk 0:01:22.6]}
28. Kd4 {[%clk 0:01:23.8]} 28... Kxa6 {[%clk 0:01:21.5]} 29. Ke5 {[%clk
0:01:24.7]} 29... Na4 {[%clk 0:01:05.9]} 30. Bf8 {[%clk 0:01:24.4]} 30... Nc3
{[%clk 0:00:30.9]} 31. Bxg7 {[%clk 0:01:14.4]} 31... Nd1 {[%clk 0:00:30.6]} 32.
Kxe6 {[%clk 0:01:14]} 32... Nxf2 {[%clk 0:00:23.6]} 33. Kxf5 {[%clk 0:01:13.1]}
33... Kb5 {[%clk 0:00:24.2]} 34. c3 {[%clk 0:01:13.2]} 34... c5 {[%clk
0:00:18.7]} 35. bxc5 {[%clk 0:01:13]} 35... Nd3 {[%clk 0:00:16.2]} 36. Bd4
{[%clk 0:01:12.4]} 36... Nxc5 {[%clk 0:00:16.3]} 37. g4 {[%clk 0:01:01.3]} 37...
Nd7 {[%clk 0:00:14]} 38. g5 {[%clk 0:01:00.5]} 38... c5 {[%clk 0:00:14.6]} 39.
Bf6 {[%clk 0:01:00.5]} 39... Kc4 {[%clk 0:00:14.7]} 40. h4 {[%clk 0:01:00.6]}
40... Kd5 {[%clk 0:00:07.4]} 41. h5 {[%clk 0:01:00.5]} 41... Nf8 {[%clk
0:00:06.4]} 42. g6 {[%clk 0:01:00.5]} 42... hxg6+ {[%clk 0:00:06.5]} 43. hxg6
{[%clk 0:01:01.4]} 1-0

[Event "Late-Titled-Tuesday-Blitz-April-16-2024"]
[Site "Chess.com"]
[Date "2024.04.16"]
[Round "2"]
[White "Schattman"]
[Black "ckgchess"]
[Result "0-1"]
[WhiteElo "2477"]
[BlackElo "2920"]
[TimeControl "180+1"]
[EndTime "14:17:17 PDT"]
[Termination "ckgchess won on time"]

1. d4 {[%clk 0:03:00.9]} 1... Nf6 {[%clk 0:02:33.5]} 2. Bf4 {[%clk 0:03:00.3]}
2... d5 {[%clk 0:02:33.5]} 3. e3 {[%clk 0:03:00.2]} 3... c5 {[%clk 0:02:33.8]}
4. c3 {[%clk 0:03:00.6]} 4... Nc6 {[%clk 0:02:34.2]} 5. Nd2 {[%clk 0:03:00.3]}
5... Bf5 {[%clk 0:02:32]} 6. Qb3 {[%clk 0:02:47.5]} 6... Qd7 {[%clk 0:02:31.3]}
7. Ngf3 {[%clk 0:02:42.5]} 7... c4 {[%clk 0:02:30.5]} 8. Qd1 {[%clk 0:02:42.3]}
8... e6 {[%clk 0:02:29.1]} 9. h3 {[%clk 0:02:35.9]} 9... h6 {[%clk 0:02:23.8]}
10. Ne5 {[%clk 0:02:34.2]} 10... Nxe5 {[%clk 0:02:21.6]} 11. Bxe5 {[%clk
0:02:35.1]} 11... Be7 {[%clk 0:02:21.3]} 12. Be2 {[%clk 0:02:32.6]} 12... b5
{[%clk 0:02:12]} 13. b3 {[%clk 0:02:31.3]} 13... O-O {[%clk 0:02:09.4]} 14. O-O
{[%clk 0:02:27.1]} 14... a5 {[%clk 0:02:01.8]} 15. a4 {[%clk 0:02:22.5]} 15...
b4 {[%clk 0:02:02]} 16. bxc4 {[%clk 0:01:56.6]} 16... bxc3 {[%clk 0:02:01.6]}
17. Nf3 {[%clk 0:01:56.2]} 17... dxc4 {[%clk 0:01:58.3]} 18. Bxc4 {[%clk
0:01:39.2]} 18... Rfc8 {[%clk 0:01:57.8]} 19. Bb5 {[%clk 0:01:36]} 19... Qd5
{[%clk 0:01:57.9]} 20. Bxf6 {[%clk 0:01:26.2]} 20... Bxf6 {[%clk 0:01:46.6]} 21.
Qe2 {[%clk 0:01:26.1]} 21... Be7 {[%clk 0:01:42.3]} 22. Bd3 {[%clk 0:01:23.9]}
22... Bxd3 {[%clk 0:01:36.8]} 23. Qxd3 {[%clk 0:01:24.8]} 23... Rc7 {[%clk
0:01:30.8]} 24. Rfc1 {[%clk 0:01:21.2]} 24... Rac8 {[%clk 0:01:29.6]} 25. Rc2
{[%clk 0:01:15.9]} 25... Bd6 {[%clk 0:01:27.1]} 26. e4 {[%clk 0:01:07.9]} 26...
Qb3 {[%clk 0:01:26.6]} 27. Ne1 {[%clk 0:00:39.9]} 27... Bb4 {[%clk 0:01:23.5]}
28. g4 {[%clk 0:00:35.1]} 28... Rd8 {[%clk 0:01:22.6]} 29. Qe3 {[%clk 0:00:20]}
29... Rcd7 {[%clk 0:01:22.3]} 30. Rd1 {[%clk 0:00:13.4]} 30... Qxa4 {[%clk
0:01:21.2]} 31. Kg2 {[%clk 0:00:11.4]} 31... Qb3 {[%clk 0:01:18.3]} 32. g5
{[%clk 0:00:09]} 32... hxg5 {[%clk 0:01:18.2]} 33. Qxg5 {[%clk 0:00:09.1]} 33...
Rxd4 {[%clk 0:01:16.5]} 34. Rxd4 {[%clk 0:00:08.7]} 34... Rxd4 {[%clk
0:01:17.4]} 35. Nf3 {[%clk 0:00:05.6]} 35... Qxc2 {[%clk 0:01:16.4]} 36. Nxd4
{[%clk 0:00:05]} 36... Qxe4+ {[%clk 0:01:17.2]} 37. Nf3 {[%clk 0:00:05.2]} 37...
c2 {[%clk 0:01:15.6]} 38. Qd8+ {[%clk 0:00:05]} 38... Bf8 {[%clk 0:01:16.3]} 39.
Qc8 {[%clk 0:00:03.9]} 39... g5 {[%clk 0:01:03.8]} 40. Qc7 {[%clk 0:00:03]}
40... a4 {[%clk 0:01:02.3]} 41. Qc3 {[%clk 0:00:02.9]} 41... a3 {[%clk
0:01:00.4]} 42. Qxa3 {[%clk 0:00:02]} 42... Bxa3 {[%clk 0:00:59.7]} 0-1

[Event "Late-Titled-Tuesday-Blitz-April-16-2024"]
[Site "Chess.com"]
[Date "2024.04.16"]
[Round "2"]
[White "Slovineanu"]
[Black "Navyblue1"]
[Result "1-0"]
[WhiteElo "2494"]
[BlackElo "2245"]
[TimeControl "180+1"]
[EndTime "14:17:26 PDT"]
[Termination "Slovineanu won by resignation"]

1. d4 {[%clk 0:03:00.9]} 1... Nf6 {[%clk 0:02:52.2]} 2. Nf3 {[%clk 0:03:01.3]}
2... g6 {[%clk 0:02:50.6]} 3. Nbd2 {[%clk 0:03:01.1]} 3... d5 {[%clk 0:02:49.7]}
4. e3 {[%clk 0:03:00.7]} 4... Bg7 {[%clk 0:02:47.6]} 5. b4 {[%clk 0:03:00.6]}
5... Ne4 {[%clk 0:02:35.9]} 6. c4 {[%clk 0:02:53.2]} 6... Nxd2 {[%clk 0:02:33]}
7. Qxd2 {[%clk 0:02:44]} 7... dxc4 {[%clk 0:02:31.3]} 8. Bxc4 {[%clk 0:02:43.2]}
8... O-O {[%clk 0:02:31.9]} 9. O-O {[%clk 0:02:40.8]} 9... a5 {[%clk 0:02:19.7]}
10. b5 {[%clk 0:02:34]} 10... e5 {[%clk 0:02:12.3]} 11. dxe5 {[%clk 0:02:26.6]}
11... Qxd2 {[%clk 0:02:09.4]} 12. Bxd2 {[%clk 0:02:25.7]} 12... Bg4 {[%clk
0:02:02.8]} 13. Bc3 {[%clk 0:02:11.3]} 13... Nd7 {[%clk 0:01:53.5]} 14. Rfd1
{[%clk 0:01:53]} 14... Nb6 {[%clk 0:01:25.6]} 15. Be2 {[%clk 0:01:38]} 15...
Rae8 {[%clk 0:01:22.3]} 16. h3 {[%clk 0:01:34.2]} 16... Bxf3 {[%clk 0:01:20]}
17. Bxf3 {[%clk 0:01:34.6]} 17... Bxe5 {[%clk 0:01:19.8]} 18. Rac1 {[%clk
0:01:26.8]} 18... Bxc3 {[%clk 0:01:10.7]} 19. Rxc3 {[%clk 0:01:26.4]} 19... Re5
{[%clk 0:01:06]} 20. Rxc7 {[%clk 0:01:21.1]} 20... Rxb5 {[%clk 0:01:02.7]} 21.
Rxb7 {[%clk 0:01:18.3]} 21... Rb4 {[%clk 0:00:38.4]} 22. a3 {[%clk 0:01:07.9]}
22... Rb2 {[%clk 0:00:33.6]} 23. Rd6 {[%clk 0:00:58.3]} 23... Nc4 {[%clk
0:00:24.8]} 24. Rxb2 {[%clk 0:00:53.3]} 24... Nxb2 {[%clk 0:00:25.7]} 25. Ra6
{[%clk 0:00:51.1]} 25... Nc4 {[%clk 0:00:19.8]} 26. a4 {[%clk 0:00:46.4]} 26...
Rd8 {[%clk 0:00:19.6]} 27. Be2 {[%clk 0:00:44.8]} 27... Rc8 {[%clk 0:00:19.3]}
28. Bxc4 {[%clk 0:00:44.2]} 28... Rxc4 {[%clk 0:00:19.3]} 29. Rxa5 {[%clk
0:00:44.6]} 29... Rc1+ {[%clk 0:00:19.8]} 30. Kh2 {[%clk 0:00:44.6]} 30... Rc2
{[%clk 0:00:19.6]} 31. f3 {[%clk 0:00:44.8]} 31... Ra2 {[%clk 0:00:19.6]} 32. e4
{[%clk 0:00:44.2]} 32... h5 {[%clk 0:00:19.2]} 33. h4 {[%clk 0:00:44.2]} 33...
Kg7 {[%clk 0:00:19.5]} 34. Ra7 {[%clk 0:00:42.6]} 34... Ra1 {[%clk 0:00:19.3]}
35. a5 {[%clk 0:00:42.3]} 35... Ra2 {[%clk 0:00:19.4]} 36. a6 {[%clk 0:00:42.5]}
36... Ra3 {[%clk 0:00:19.6]} 37. e5 {[%clk 0:00:42.1]} 37... Ra4 {[%clk
0:00:19.5]} 38. Kg3 {[%clk 0:00:41]} 38... Ra3 {[%clk 0:00:19]} 39. e6 {[%clk
0:00:40.6]} 39... Kf8 {[%clk 0:00:13.3]} 40. Rxf7+ {[%clk 0:00:39.8]} 40... Ke8
{[%clk 0:00:13.7]} 41. a7 {[%clk 0:00:40]} 41... Ra6 {[%clk 0:00:12.1]} 42. Rh7
{[%clk 0:00:39.4]} 1-0

[Event "Late-Titled-Tuesday-Blitz-April-16-2024"]
[Site "Chess.com"]
[Date "2024.04.16"]
[Round "2"]
[White "Rud_Makarian"]
[Black "xasid81"]
[Result "0-1"]
[WhiteElo "3009"]
[BlackElo "2648"]
[TimeControl "180+1"]
[EndTime "14:17:28 PDT"]
[Termination "xasid81 won by resignation"]

1. d4 {[%clk 0:03:00.9]} 1... d5 {[%clk 0:02:58.6]} 2. c4 {[%clk 0:02:58.7]}
2... c6 {[%clk 0:02:53.9]} 3. Nf3 {[%clk 0:02:59.6]} 3... Nf6 {[%clk 0:02:53.2]}
4. Nc3 {[%clk 0:03:00.2]} 4... e6 {[%clk 0:02:53.7]} 5. Bg5 {[%clk 0:03:00.8]}
5... Nbd7 {[%clk 0:02:53.6]} 6. e3 {[%clk 0:03:00.9]} 6... h6 {[%clk 0:02:53.2]}
7. Bf4 {[%clk 0:02:59.5]} 7... Be7 {[%clk 0:02:51.6]} 8. Qc2 {[%clk 0:02:58.2]}
8... b6 {[%clk 0:02:49.4]} 9. cxd5 {[%clk 0:02:57.6]} 9... exd5 {[%clk
0:02:44.9]} 10. Be2 {[%clk 0:02:52.3]} 10... Bb7 {[%clk 0:02:43.9]} 11. Rd1
{[%clk 0:02:47.3]} 11... Rc8 {[%clk 0:02:36.3]} 12. Nh4 {[%clk 0:02:35.9]} 12...
g5 {[%clk 0:02:23.1]} 13. Ng6 {[%clk 0:02:30.6]} 13... fxg6 {[%clk 0:02:15.6]}
14. Qxg6+ {[%clk 0:02:31.5]} 14... Kf8 {[%clk 0:02:15.7]} 15. Bg3 {[%clk
0:02:32.4]} 15... Qe8 {[%clk 0:02:13.4]} 16. Qc2 {[%clk 0:02:32.9]} 16... Kg7
{[%clk 0:02:07]} 17. O-O {[%clk 0:02:32]} 17... c5 {[%clk 0:02:04.6]} 18. Bd3
{[%clk 0:02:30.2]} 18... c4 {[%clk 0:01:48.7]} 19. Bf5 {[%clk 0:02:30.3]} 19...
Rd8 {[%clk 0:01:41.8]} 20. f4 {[%clk 0:02:28.9]} 20... Nf8 {[%clk 0:01:39.8]}
21. fxg5 {[%clk 0:02:28.6]} 21... hxg5 {[%clk 0:01:40.7]} 22. Be5 {[%clk
0:02:28.9]} 22... Ng6 {[%clk 0:01:34.4]} 23. Nb5 {[%clk 0:01:54.8]} 23... Bc8
{[%clk 0:01:13.2]} 24. Nc7 {[%clk 0:01:27.5]} 24... Qf7 {[%clk 0:00:57.1]} 25.
Bxc8 {[%clk 0:01:27.5]} 25... Rxc8 {[%clk 0:00:53.5]} 26. Qf5 {[%clk 0:01:28.1]}
26... Rxc7 {[%clk 0:00:17.6]} 27. Bxc7 {[%clk 0:01:29]} 27... g4 {[%clk
0:00:13.3]} 28. Be5 {[%clk 0:01:21.5]} 28... Rf8 {[%clk 0:00:10]} 29. Qxg4
{[%clk 0:01:17]} 29... Kh7 {[%clk 0:00:08.1]} 30. Qh3+ {[%clk 0:01:16.3]} 30...
Kg8 {[%clk 0:00:07.8]} 31. Rf5 {[%clk 0:01:16.6]} 31... Qe6 {[%clk 0:00:05.6]}
32. Rdf1 {[%clk 0:01:11.1]} 32... Nh7 {[%clk 0:00:05.7]} 33. Qxh7+ {[%clk
0:00:54.7]} 33... Kxh7 {[%clk 0:00:05.4]} 34. Rh5+ {[%clk 0:00:49.6]} 34... Kg8
{[%clk 0:00:05.3]} 35. Re1 {[%clk 0:00:48.7]} 35... Rf5 {[%clk 0:00:04.9]} 36.
Rh6 {[%clk 0:00:48.5]} 36... Bf8 {[%clk 0:00:04]} 37. Rh3 {[%clk 0:00:48.2]}
37... Nxe5 {[%clk 0:00:04.2]} 38. dxe5 {[%clk 0:00:49.1]} 38... Rxe5 {[%clk
0:00:05.1]} 39. Rg3+ {[%clk 0:00:49.5]} 39... Bg7 {[%clk 0:00:05.7]} 40. Rf3
{[%clk 0:00:50.4]} 40... Re4 {[%clk 0:00:06.2]} 41. h3 {[%clk 0:00:50.4]} 41...
d4 {[%clk 0:00:06.8]} 42. Ref1 {[%clk 0:00:51.1]} 42... Rxe3 {[%clk 0:00:06.8]}
0-1

[Event "Late-Titled-Tuesday-Blitz-April-16-2024"]
[Site "Chess.com"]
[Date "2024.04.16"]
[Round "2"]
[White "ElCoachRene"]
[Black "JoakimVonAnd"]
[Result "0-1"]
[WhiteElo "1964"]
[BlackElo "2693"]
[TimeControl "180+1"]
[EndTime "14:17:30 PDT"]
[Termination "JoakimVonAnd won on time"]

1. Nf3 {[%clk 0:03:00.9]} 1... Nf6 {[%clk 0:02:58.3]} 2. d4 {[%clk 0:03:01.3]}
2... d5 {[%clk 0:02:56.9]} 3. Bf4 {[%clk 0:03:01.7]} 3... e6 {[%clk 0:02:54.6]}
4. e3 {[%clk 0:03:02.1]} 4... Bd6 {[%clk 0:02:54.2]} 5. Bg3 {[%clk 0:03:02.2]}
5... c5 {[%clk 0:02:53.9]} 6. c3 {[%clk 0:03:01.5]} 6... O-O {[%clk 0:02:53.8]}
7. Nbd2 {[%clk 0:03:01.3]} 7... Qc7 {[%clk 0:02:51.8]} 8. Ne5 {[%clk 0:02:58.6]}
8... Nbd7 {[%clk 0:02:44.8]} 9. f4 {[%clk 0:02:56.1]} 9... b6 {[%clk 0:02:33.4]}
10. Bd3 {[%clk 0:02:55]} 10... Bb7 {[%clk 0:02:28.1]} 11. Qf3 {[%clk 0:02:54.5]}
11... g6 {[%clk 0:02:11.6]} 12. Bh4 {[%clk 0:02:51.6]} 12... Nh5 {[%clk
0:02:01.7]} 13. g4 {[%clk 0:02:39.9]} 13... Ng7 {[%clk 0:02:00.9]} 14. Nxd7
{[%clk 0:02:23.8]} 14... Qxd7 {[%clk 0:01:59.5]} 15. Bf6 {[%clk 0:02:23.8]}
15... Ne8 {[%clk 0:01:56.3]} 16. Bg5 {[%clk 0:02:07.1]} 16... f6 {[%clk
0:01:47.1]} 17. Bh6 {[%clk 0:02:06.3]} 17... Rf7 {[%clk 0:01:43.7]} 18. h4
{[%clk 0:02:04.7]} 18... e5 {[%clk 0:01:41.2]} 19. Qg2 {[%clk 0:01:10]} 19...
cxd4 {[%clk 0:01:31.1]} 20. exd4 {[%clk 0:01:07.3]} 20... exf4 {[%clk
0:01:22.1]} 21. O-O-O {[%clk 0:01:00.1]} 21... Ng7 {[%clk 0:01:14.8]} 22. h5
{[%clk 0:00:59.2]} 22... g5 {[%clk 0:01:11.4]} 23. Rde1 {[%clk 0:00:54]} 23...
Re8 {[%clk 0:01:07]} 24. Bxg7 {[%clk 0:00:52]} 24... Kxg7 {[%clk 0:01:05.1]} 25.
Bf5 {[%clk 0:00:45.3]} 25... Qd8 {[%clk 0:01:03.3]} 26. h6+ {[%clk 0:00:34.7]}
26... Kg8 {[%clk 0:01:02.3]} 27. Nf3 {[%clk 0:00:25.2]} 27... Rfe7 {[%clk
0:00:59.2]} 28. Rxe7 {[%clk 0:00:18.5]} 28... Rxe7 {[%clk 0:00:58.7]} 29. Re1
{[%clk 0:00:15.8]} 29... Qe8 {[%clk 0:00:50.6]} 30. Kd2 {[%clk 0:00:14]} 30...
Rxe1 {[%clk 0:00:48.6]} 31. Nxe1 {[%clk 0:00:13.1]} 31... Qe3+ {[%clk 0:00:46]}
32. Kd1 {[%clk 0:00:12.5]} 32... a5 {[%clk 0:00:34.8]} 33. Qe2 {[%clk
0:00:12.1]} 33... Qxe2+ {[%clk 0:00:29.6]} 34. Kxe2 {[%clk 0:00:13]} 34... Bf8
{[%clk 0:00:29.8]} 35. Be6+ {[%clk 0:00:05.8]} 35... Kh8 {[%clk 0:00:29.5]} 36.
Nf3 {[%clk 0:00:02.7]} 36... Bxh6 {[%clk 0:00:28.9]} 0-1

[Event "Late-Titled-Tuesday-Blitz-April-16-2024"]
[Site "Chess.com"]
[Date "2024.04.16"]
[Round "2"]
[White "GM_dmitrij"]
[Black "Rainbow2014"]
[Result "1-0"]
[WhiteElo "2987"]
[BlackElo "2419"]
[TimeControl "180+1"]
[EndTime "14:17:30 PDT"]
[Termination "GM_dmitrij won on time"]

1. c4 {[%clk 0:03:00.9]} 1... e6 {[%clk 0:02:59.6]} 2. Nf3 {[%clk 0:03:00.9]}
2... d5 {[%clk 0:03:00.5]} 3. g3 {[%clk 0:03:01.3]} 3... Nf6 {[%clk 0:03:00.3]}
4. Bg2 {[%clk 0:03:01.8]} 4... Be7 {[%clk 0:03:00.2]} 5. b3 {[%clk 0:03:02.1]}
5... O-O {[%clk 0:03:00.3]} 6. Bb2 {[%clk 0:03:02.5]} 6... b6 {[%clk 0:02:59.7]}
7. O-O {[%clk 0:03:02.7]} 7... Bb7 {[%clk 0:03:00.2]} 8. cxd5 {[%clk 0:03:02.4]}
8... exd5 {[%clk 0:02:59.7]} 9. d4 {[%clk 0:03:02.3]} 9... Nbd7 {[%clk
0:02:57.9]} 10. Nc3 {[%clk 0:03:01.8]} 10... Re8 {[%clk 0:02:56.7]} 11. Rc1
{[%clk 0:03:02.7]} 11... c6 {[%clk 0:02:56.8]} 12. Rc2 {[%clk 0:03:00.8]} 12...
Bd6 {[%clk 0:02:48.5]} 13. e3 {[%clk 0:03:00.8]} 13... Ne4 {[%clk 0:02:47.6]}
14. Nxe4 {[%clk 0:02:58.6]} 14... Rxe4 {[%clk 0:02:48.5]} 15. Ne5 {[%clk
0:02:53.1]} 15... Rxe5 {[%clk 0:02:41.9]} 16. dxe5 {[%clk 0:02:52.9]} 16... Bxe5
{[%clk 0:02:40.1]} 17. e4 {[%clk 0:02:51.9]} 17... Bxb2 {[%clk 0:02:35.9]} 18.
exd5 {[%clk 0:02:46.9]} 18... Ba6 {[%clk 0:02:07.7]} 19. Re1 {[%clk 0:02:31.6]}
19... Bf6 {[%clk 0:01:51.2]} 20. dxc6 {[%clk 0:02:31.4]} 20... Nc5 {[%clk
0:01:47.1]} 21. Qxd8+ {[%clk 0:02:28.1]} 21... Rxd8 {[%clk 0:01:45.9]} 22. c7
{[%clk 0:02:28.1]} 22... Rc8 {[%clk 0:01:44.9]} 23. Bh3 {[%clk 0:02:28.2]} 23...
Ne6 {[%clk 0:01:43.2]} 24. Bxe6 {[%clk 0:01:42]} 24... fxe6 {[%clk 0:01:44.1]}
25. Rxe6 {[%clk 0:01:42.7]} 25... Kf7 {[%clk 0:01:29.1]} 26. Re1 {[%clk
0:01:42.4]} 26... Bd3 {[%clk 0:01:20.3]} 27. Rcc1 {[%clk 0:01:36.6]} 27... Bf5
{[%clk 0:01:14.2]} 28. Kg2 {[%clk 0:01:35.2]} 28... Be6 {[%clk 0:01:10.6]} 29.
f3 {[%clk 0:01:34.8]} 29... Bd5 {[%clk 0:01:00.9]} 30. h4 {[%clk 0:01:31.7]}
30... Be7 {[%clk 0:00:57.5]} 31. Re5 {[%clk 0:01:05.6]} 31... Bb7 {[%clk
0:00:48.9]} 32. Rc4 {[%clk 0:01:04.5]} 32... Bd6 {[%clk 0:00:37.3]} 33. Rf5+
{[%clk 0:00:39.7]} 33... Ke6 {[%clk 0:00:31.5]} 34. Rg5 {[%clk 0:00:39.8]} 34...
g6 {[%clk 0:00:25.8]} 35. h5 {[%clk 0:00:38.4]} 35... Kf6 {[%clk 0:00:18.6]} 36.
Rcg4 {[%clk 0:00:34.3]} 36... Rxc7 {[%clk 0:00:14.6]} 37. hxg6 {[%clk
0:00:34.3]} 37... Rc2+ {[%clk 0:00:09.7]} 38. Kf1 {[%clk 0:00:34.4]} 1-0